[Event "FAI-ch Candidates 2022"]
[Site "Eidi"]
[Date "2022.04.12"]
[Round "4.4"]
[White "Danielsen, Andrias"]
[Black "Skaale, Janus"]
[Result "0-1"]
[ECO "E60"]
[WhiteElo "1893"]
[BlackElo "1883"]
[Annotator "NA RC"]
[PlyCount "76"]
[EventDate "2022.04.10"]
[EventType "tourn"]
[EventCountry "FAI"]
[SourceTitle "playchess.com"]
[Source "ChessBase"]
[SourceQuality "1"]
[TimeControl "40/5400+30:1800+30"]

1. Nf3 {[%emt 0:00:04]} Nf6 {[%emt 0:00:16]} 2. b3 {[%emt 0:00:27]} g6 {[%emt 0:03:25]} 3. Bb2 {[%emt 0:00:21]} Bg7 {[%emt 0:00:03]} 4. e3 {[%emt 0:00:52]} O-O {[%emt 0:00:34]} 5. Be2 {[%emt 0:02:51]} d6 {[%emt 0:02:28]} 6. d4 {[%emt 0:00:43]} c5 {[%emt 0:01:43]} 7. O-O {[%emt 0:00:56]} Nbd7 {[%emt 0:01:23]} 8. c4 {[%emt 0:00:58]} Ne4 {[%emt 0:07:38] 8...cxd4 gains popularity.} 9. Nbd2 {[%emt 0:07:53]} Ndf6 {[%emt 0:05:20]} 10. Qc2 {[%emt 0:07:30]} Nxd2 {[%emt 0:03:49]} 11. Nxd2 {[%emt 0:00:37] [#]} Qc7 $146 {[%emt 0:01:57]} ({Predecessor:} 11... cxd4 12. Bxd4 Bd7 13. Bf3 Qc7 14. Rac1 Rac8 15. Qb2 b6 16. Ne4 e5 17. Bc3 Nxe4 18. Bxe4 {½-½ (62) Adamkova,S-Paral,S Brno 1999}) 12. d5 {[%emt 0:10:50]} Rb8 {[%emt 0:02:47]} 13. e4 {[%emt 0:00:12]} a6 {[%emt 0:12:43]} 14. h3 {[%emt 0:00:50]} b5 {[%emt 0:01:17]} 15. Rad1 {[%emt 0:07:21]} bxc4 {[%emt 0:05:29]} 16. Nxc4 {[%emt 0:05:25]} Nd7 {[%emt 0:09:57]} 17. Bxg7 {[%emt 0:02:32]} Kxg7 {[%emt 0:00:01]} 18. f4 {[%emt 0:00:24]} Kg8 {[%emt 0:02:12]} 19. Qc3 {[%emt 0:00:15]} Nb6 {[%emt 0:03:01]} 20. e5 {[%emt 0:13:31]} Nxc4 {[%emt 0:07:35]} 21. Bxc4 {[%emt 0:00:23]} Bb7 {[%emt 0:00:39]} 22. h4 {[%emt 0:02:42]} (22. f5 $18) 22... Qd7 {[%emt 0:05:31]} 23. Qg3 {[%emt 0:01:04]} Qf5 {[%emt 0:01:51]} 24. Bd3 {[%emt 0:00:41]} Qh5 {[%emt 0:00:10]} 25. Be2 $2 {[%emt 0:02:53]} Qxe2 {[%emt 0:00:39]} 26. exd6 {[%emt 0:01:43]} exd6 {[%emt 0:00:51]} 27. f5 {[%emt 0:00:10]} Qe5 {[%emt 0:01:36]} 28. Qg5 {[%emt 0:00:23]} Rbe8 {[%emt 0:02:46]} 29. Rf3 {[%emt 0:02:25]} Bxd5 {[%emt 0:03:30]} 30. Rf2 {[%emt 0:02:27]} f6 {[%emt 0:09:07]} 31. Qg4 {[%emt 0:02:22]} Bf7 {[%emt 0:03:23]} 32. Rdf1 {[%emt 0:00:25]} Qd4 {[%emt 0:00:53]} 33. Qf3 {[%emt 0:05:14]} Re3 {[%emt 0:00:11]} 34. Qb7 {[%emt 0:00:32]} Re2 {[%emt 0:01:43]} 35. fxg6 {[%emt 0:01:21]} hxg6 {[%emt 0:00:33]} 36. h5 {[%emt 0:01:05]} Rfe8 {[%emt 0:00:48]} 37. hxg6 {[%emt 0:00:22]} Bxg6 {[%emt 0:00:12]} 38. Qd7 {[%emt 0:00:27]} Rxf2 {[%emt 0:00:42]} 0-1

[Event "FAI-ch Candidates 2022"]
[Site "Eidi"]
[Date "2022.04.13"]
[Round "5.1"]
[White "Skaale, Janus"]
[Black "Gregersen, Hedin"]
[Result "1-0"]
[ECO "B07"]
[WhiteElo "1883"]
[BlackElo "1859"]
[Annotator "NA RC"]
[PlyCount "61"]
[EventDate "2022.04.10"]
[EventType "tourn"]
[EventCountry "FAI"]
[SourceTitle "playchess.com"]
[Source "ChessBase"]
[SourceQuality "1"]
[TimeControl "40/5400+30:1800+30"]

{[%evp 8,61,50,41,46,43,42,32767,45,32767,97,32767,32767,32767,32767,32767,32767,32767,230,113,479,458,466,436,517,399,412,437,32767,32767,32767,443,446,376,367,32767,689,838,1173,607,32767,32767,741,747,32767,32767,32767,32767,920,32767,32767,32767,32767,6323,5506,11437]} 1. e4 {[%emt 0:00:09]} d6 {[%emt 0:00:15]} 2. d4 {[%emt 0:00:20]} Nf6 {[%emt 0:00:11]} 3. Nc3 {[%emt 0:00:17]} g6 {[%emt 0:00:09]} 4. Be3 {[%emt 0:00:54]} a6 {[%emt 0:02:15]} 5. h3 {[%emt 0:00:28]} Bg7 {[%emt 0:00:07]} 6. f4 {[%emt 0:00:41]} O-O {[%emt 0:00:23]} 7. Nf3 {[%emt 0:00:35]} Nc6 {[%emt 0:10:20]} 8. e5 {[%emt 0:22:28]} dxe5 {[%emt 0:10:23]} (8... Nh5 $11) 9. dxe5 {[%emt 0:01:12]} Nd7 {[%emt 0:05:03]} 10. a4 {[%emt 0:13:07]} b6 {[%emt 0:03:47]} 11. Qd5 {[%emt 0:07:31]} Nb4 {[%emt 0:13:54]} 12. Qe4 {[%emt 0:02:33]} c5 {[%emt 0:05:32]} (12... a5 $16) 13. O-O-O {[%emt 0:03:02]} (13. Qxa8 $18 {is the precise move to win.} Nxc2+ 14. Kf2 Nxa1 15. Bxa6) 13... Qc7 $2 {[%emt 0:08:47]} 14. Qxa8 {[%emt 0:03:15]} Nxe5 {[%emt 0:05:47]} 15. Nxe5 {[%emt 0:06:33]} Bxe5 {[%emt 0:04:34]} 16. Qe4 {[%emt 0:01:26]} Bg7 {[%emt 0:04:44]} 17. Nd5 {[%emt 0:02:49]} Nxd5 {[%emt 0:00:58]} 18. Qxd5 {[%emt 0:00:11]} Be6 {[%emt 0:00:28]} 19. Qe4 {[%emt 0:07:13]} b5 {[%emt 0:00:38]} 20. g4 {[%emt 0:00:54]} bxa4 {[%emt 0:04:12]} 21. Bc4 {[%emt 0:02:43]} Qa5 {[%emt 0:03:33]} (21... Bc8 $142 22. Bd5 Qb6) 22. Bxe6 {[%emt 0:05:13]} Rb8 {[%emt 0:01:48]} 23. b3 {[%emt 0:13:13]} fxe6 {[%emt 0:06:47]} 24. Qxa4 {[%emt 0:00:58]} Qc3 {[%emt 0:02:17]} (24... Bb2+ $142 25. Kxb2 (25. Kb1 Qxa4 26. bxa4 Bd4+ 27. Ka2 Bxe3 $18) 25... Qxa4) 25. Qe4 {[%emt 0:00:24]} a5 {[%emt 0:01:57]} 26. Rd3 {[%emt 0:00:40]} Qb2+ {[%emt 0:00:54]} 27. Kd2 {[%emt 0:00:05]} e5 {[%emt 0:01:33]} 28. f5 {[%emt 0:00:37]} c4 {[%emt 0:00:31]} 29. Qxc4+ {[%emt 0:00:26]} Kh8 {[%emt 0:00:14]} 30. Qc7 {[%emt 0:01:12]} Rf8 {[%emt 0:00:22]} 31. Rd8 $18 {[%emt 0:00:44]} (31. Qxe7 $142 Kg8 {[#]} 32. Rb1 $3 {[%mdl 512]} e4 33. Rxb2 exd3 34. c3 Rf6 35. Kxd3 Rf8 36. Bc5) 1-0

[Event "FAI-ch Candidates 2022"]
[Site "Eidi"]
[Date "2022.04.13"]
[Round "5.2"]
[White "Hansen Eliasen, Bogi"]
[Black "Danielsen, Andrias"]
[Result "0-1"]
[ECO "E08"]
[WhiteElo "1841"]
[BlackElo "1893"]
[Annotator "NA RC"]
[PlyCount "62"]
[EventDate "2022.04.10"]
[EventType "tourn"]
[EventCountry "FAI"]
[SourceTitle "playchess.com"]
[Source "ChessBase"]
[SourceQuality "1"]
[TimeControl "40/5400+30:1800+30"]

{[%evp 8,62,20,14,22,32767,32767,16,9,10,32767,13,24,26,32767,-10,-1,-23,32767,32767,4,32767,32767,32767,32767,32767,32767,-44,-45,-69,-6,-57,-75,-66,32767,-31,0,8,29,32767,32767,32,37,29,0,0,0,0,0,32767,-209,-220,-340,32767,-242,-922,-950]} 1. d4 {[%emt 0:00:06]} d5 {[%emt 0:01:37]} 2. c4 {[%emt 0:00:21]} e6 {[%emt 0:00:10]} 3. Nf3 {[%emt 0:00:21]} c6 {[%emt 0:00:40]} 4. g3 {[%emt 0:00:50]} Nf6 {[%emt 0:00:54]} 5. Bg2 {[%emt 0:00:35]} Nbd7 {[%emt 0:06:35]} 6. O-O {[%emt 0:01:47]} Be7 {[%emt 0:00:15]} 7. Qc2 {[%emt 0:01:09]} O-O {[%emt 0:00:36]} 8. b3 {[%emt 0:01:00]} Ne4 {[%emt 0:02:09]} 9. Nfd2 {[%emt 0:01:43]} f5 {[%emt 0:01:38]} 10. Nxe4 {[%emt 0:00:38]} fxe4 {[%emt 0:00:38]} 11. f3 {[%emt 0:01:45]} exf3 $1 {[%emt 0:02:58]} 12. Bxf3 {[%emt 0:03:55]} Nf6 {[%emt 0:03:04]} 13. Be3 {[%emt 0:01:17]} a5 {[%emt 0:00:23]} 14. Nd2 {[%emt 0:03:20]} Bd7 {[%emt 0:05:42]} 15. Bf2 {[%emt 0:09:41]} Be8 {[%emt 0:07:10]} 16. a3 {[%emt 0:27:08]} Bg6 {[%emt 0:02:41]} 17. Qc3 {[%emt 0:01:25]} b5 {[%emt 0:07:04]} 18. c5 {[%emt 0:04:05]} Qd7 {[%emt 0:08:03]} (18... a4 $17) 19. Rfe1 {[%emt 0:04:53]} a4 {[%emt 0:01:36]} 20. b4 $1 {[%emt 0:10:14]} Rae8 {[%emt 0:01:13]} 21. e4 {[%emt 0:03:25]} h6 {[%emt 0:01:52]} 22. e5 {[%emt 0:02:44]} Nh7 {[%emt 0:00:27]} 23. h4 {[%emt 0:01:43]} Rc8 {[%emt 0:02:14]} 24. Rf1 {[%emt 0:03:13]} Bd8 {[%emt 0:03:29]} 25. Be3 {[%emt 0:01:17]} Qe8 $1 {[%emt 0:00:46]} 26. Bg4 {[%emt 0:00:47]} Bh5 {[%emt 0:01:21]} 27. Bh3 {[%emt 0:01:14]} Qg6 {[%emt 0:01:29]} 28. Bf4 {[%emt 0:03:39]} Bxh4 $1 {[%emt 0:00:18]} 29. Bxe6+ {[%emt 0:00:14]} Qxe6 {[%emt 0:01:07]} 30. gxh4 {[%emt 0:00:12]} Qg4+ {[%emt 0:01:43]} 31. Qg3 $19 {[%emt 0:00:23] [#]} (31. Bg3) 31... Rxf4 $1 {[%emt 0:02:59]} 0-1

[Event "FAI-ch Candidates 2022"]
[Site "Eidi"]
[Date "2022.04.13"]
[Round "5.4"]
[White "Berg, Margar M."]
[Black "Jacobsen, Heidrikur T."]
[Result "0-1"]
[ECO "A01"]
[WhiteElo "2005"]
[BlackElo "1853"]
[Annotator "TA"]
[PlyCount "98"]
[EventDate "2022.04.10"]
[EventType "tourn"]
[EventCountry "FAI"]
[SourceTitle "playchess.com"]
[Source "ChessBase"]
[SourceQuality "1"]
[TimeControl "40/5400+30:1800+30"]

{[%evp 9,98,-19,-21,-27,-27,-14,-16,-70,-8,-24,-19,-77,-78,-85,-85,-79,-8,-8,-12,-16,-6,0,-6,-50,43,49,62,17,10,-41,-31,-69,-59,-77,-61,-80,-77,-75,-66,-76,-79,-69,0,-91,-32,-167,-87,-261,-253,-345,-360,-358,-347,-310,-219,-214,-204,-229,-188,-558,-546,-643,-637,-716,-604,-606,-606,-578,-564,-852,-829,-834,-793,-1108,-1082,-1014,-955,-935,-931,-886,-914,-903,-926,-847,-837,-1152,-1046,-902,-820,-763,0]} 1. b3 {[%emt 0:00:28]} e5 {[%emt 0:00:24]} 2. Bb2 {[%emt 0:00:06]} Nc6 {[%emt 0:00:08]} 3. e3 {[%emt 0:01:10]} Nf6 {[%emt 0:00:38]} 4. Be2 {[%emt 0:02:16]} d5 {[%emt 0:00:13]} 5. Nf3 {[%emt 0:01:57]} Bd6 {[%emt 0:00:55]} 6. d4 {[%emt 0:01:47][%cal Rd4e5] A01: Nimzowitsch-Larsen Opening.} e4 {[%emt 0:03:37]} 7. Ne5 {[%emt 0:01:18] [#]} Ne7 $146 {[%emt 0:06:27]} ({Predecessor:} 7... Qe7 8. Bb5 Bd7 9. Bxc6 Bxc6 10. Nxc6 bxc6 11. c4 c5 12. dxc5 Bxc5 13. cxd5 Rd8 {0-1 (45) Seelig,J-Klein,A Leverkusen 2001}) 8. Nd2 {[%emt 0:04:41]} (8. O-O $11) 8... Ng6 {[%emt 0:02:15]} ({Black should play} 8... O-O $15) 9. c4 $11 {[%emt 0:03:12]} c6 {[%emt 0:00:55]} 10. h4 {[%emt 0:08:25]} (10. O-O $11) 10... Qe7 $17 {[%emt 0:04:10][%cal Rg6e5]} 11. cxd5 {[%emt 0:17:20]} cxd5 {[%emt 0:02:16]} 12. Bb5+ {[%emt 0:06:01]} Bd7 {[%emt 0:01:32]} (12... Kf8 $17 {[%cal Rg6e5]} 13. f4 exf3 14. Ndxf3 Bb4+ 15. Kf1 Ne4) 13. Nxd7 $11 {[%emt 0:00:48]} Nxd7 {[%emt 0:00:07]} 14. h5 {[%emt 0:01:07]} Ngf8 {[%emt 0:01:00]} 15. Qg4 {[%emt 0:18:57]} Ne6 {[%emt 0:02:54]} 16. f3 {[%emt 0:00:42]} Qg5 {[%emt 0:04:33]} (16... exf3 $1 $15 17. Qxf3 O-O) 17. Qxg5 $14 {[%emt 0:03:32]} Nxg5 {[%emt 0:00:09]} 18. O-O {[%emt 0:12:07]} Bb4 {[%emt 0:10:49]} 19. Rf2 {[%emt 0:12:10]} (19. Nb1 $11) 19... a6 $15 {[%emt 0:02:31]} 20. Bf1 {[%emt 0:00:24]} Rc8 {[%emt 0:01:34]} 21. f4 {[%emt 0:01:04]} Ne6 {[%emt 0:00:33] &Nero is more active.} 22. a3 {[%emt 0:00:19]} Bd6 {[%emt 0:03:21]} 23. Nb1 {[%emt 0:01:13]} f5 {[%emt 0:00:49]} 24. Nc3 {[%emt 0:00:14]} Nf6 {[%emt 0:00:23]} 25. Rc1 {[%emt 0:01:03][%cal Oc3e4]} O-O {[%emt 0:01:43]} (25... Kf7 $15) 26. Rfc2 {[%emt 0:00:24] [#]} (26. Be2 $11 {keeps the balance.}) 26... Rc6 {[%emt 0:02:46]} (26... Bxf4 $1 $17 27. Nxd5 (27. exf4 Nxd4 28. Nxd5 Rxc2 $17) 27... Nxd5 $1 28. exf4 Rxc2 29. Rxc2 Nexf4) 27. Be2 {[%emt 0:00:43] [#]} (27. b4 $15) 27... Rfc8 {[%emt 0:00:19]} (27... Bxf4 $1 $19 {[%mdl 512]} 28. Nxd5 (28. exf4 Nxd4 29. Nxd5 Nxe2+ 30. Rxe2 Rxc1+ 31. Bxc1 Nxd5 $17) 28... Nxd5 29. exf4 Ndxf4) 28. b4 $2 {[%emt 0:00:25] [#]} (28. g3 $17) 28... Bxf4 $1 $19 {[%emt 0:03:10][%mdl 512]} 29. exf4 {[%emt 0:00:30]} (29. Kf2 Bg5) 29... Nxd4 {[%emt 0:00:06]} 30. Rd2 {[%emt 0:00:34]} Nb3 {[%emt 0:00:08][%csl LRc1,LRd2][%cal Bd4b3,Bb3c1,Bc1e2,Be2f4][%mdl 32] Pair of Knights!} 31. Nxd5 {[%emt 0:00:30]} Nxc1 {[%emt 0:06:02]} 32. Ne7+ {[%emt 0:00:03]} Kf7 {[%emt 0:00:57]} 33. Nxc6 {[%emt 0:00:18]} Nxe2+ {[%emt 0:00:18]} ({Not} 33... Rxc6 $2 34. Bxf6 Nxe2+ 35. Rxe2) 34. Kf2 $2 {[%emt 0:00:33]} (34. Rxe2 Rxc6 35. Bxf6 gxf6 36. Rd2) 34... Nxf4 {[%emt 0:01:42] Black is clearly winning.} ({Inferior is} 34... bxc6 35. Kxe2 Nxh5 36. Ke3 $17) 35. Na5 {[%emt 0:01:03]} Nd3+ {[%emt 0:01:31]} 36. Kf1 {[%emt 0:00:31]} Nxb2 {[%emt 0:00:18]} 37. Rxb2 {[%emt 0:00:10][%mdl 4096] Endgame KRN-KRN} b6 {[%emt 0:00:13]} 38. Nb3 {[%emt 0:00:50] Prevents Rc1+.} Nxh5 {[%emt 0:00:14]} 39. Rd2 {[%emt 0:00:32]} e3 {[%emt 0:01:15]} 40. Rd7+ {[%emt 0:00:00]} Ke6 {[%emt 0:00:00]} 41. Rb7 {[%emt 0:15:25]} Ng3+ {[%emt 0:16:18]} 42. Ke1 {[%emt 0:00:41]} Rc3 {[%emt 0:00:31]} 43. Nd4+ {[%emt 0:00:28]} Ke5 {[%emt 0:00:22][%cal Rc3c1]} 44. Ne2 {[%emt 0:00:16] Inhibits Rc1+.} Nxe2 {[%emt 0:00:24]} 45. Kxe2 {[%emt 0:00:04]} Rxa3 {[%emt 0:00:25]} 46. g3 {[%emt 0:01:23]} g5 {[%emt 0:03:51] Threatens to win with ...f4.} 47. Rxh7 {[%emt 0:00:49]} Rb3 {[%emt 0:00:36] Hoping for ...f4.} 48. Re7+ {[%emt 0:01:42]} Kd4 {[%emt 0:00:34]} 49. Rd7+ {[%emt 0:00:23]} Ke5 $2 {[%emt 0:01:57][%mdl 32768] Weighted Error Value: White=0.63/Black=0.21 (precise) . Sensor Board Error (Ke4/e5)?} (49... Kc4 $19 50. Rf7 Rxb4 51. Rc7+ Kb3 52. Kxe3 a5) 0-1

[Event "FAI-ch Candidates 2022"]
[Site "Eidi"]
[Date "2022.04.14"]
[Round "6.1"]
[White "Gregersen, Hedin"]
[Black "Jacobsen, Heidrikur T."]
[Result "1-0"]
[ECO "A04"]
[WhiteElo "1859"]
[BlackElo "1853"]
[Annotator "NA RC"]
[PlyCount "81"]
[EventDate "2022.04.10"]
[EventType "tourn"]
[EventCountry "FAI"]
[SourceTitle "playchess.com"]
[Source "ChessBase"]
[SourceQuality "1"]
[TimeControl "40/5400+30:1800+30"]

1. Nf3 {[%emt 0:00:03]} d6 {[%emt 0:01:32]} 2. g3 {[%emt 0:00:10]} Nc6 {[%emt 0:01:04]} 3. Bg2 {[%emt 0:00:08]} e5 {[%emt 0:00:19]} 4. O-O {[%emt 0:00:09]} Be7 {[%emt 0:00:26]} 5. d4 {[%emt 0:04:43]} e4 {[%emt 0:18:17]} 6. Nfd2 $11 {[%emt 0:01:58]} f5 {[%emt 0:00:15]} 7. d5 {[%emt 0:08:36]} Ne5 {[%emt 0:02:18]} 8. f3 {[%emt 0:01:49]} exf3 {[%emt 0:03:44]} 9. Nxf3 {[%emt 0:01:30]} Nxf3+ {[%emt 0:05:33]} 10. Bxf3 {[%emt 0:12:59]} Nf6 {[%emt 0:03:46]} 11. c4 {[%emt 0:03:06]} O-O {[%emt 0:00:23]} 12. Bf4 {[%emt 0:06:13]} Ne4 {[%emt 0:02:47]} 13. Nd2 {[%emt 0:04:51]} g5 {[%emt 0:12:06]} 14. Be3 {[%emt 0:00:55]} Nxd2 {[%emt 0:01:30]} 15. Qxd2 {[%emt 0:03:26]} Bf6 {[%emt 0:01:43]} 16. Rf2 {[%emt 0:01:28]} Qe7 {[%emt 0:01:17]} 17. Raf1 {[%emt 0:11:57]} Bd7 {[%emt 0:00:50]} 18. b4 {[%emt 0:03:41]} a5 {[%emt 0:03:24]} 19. bxa5 {[%emt 0:02:59]} Rfe8 {[%emt 0:00:29]} 20. Bd4 {[%emt 0:02:21]} Bxd4 {[%emt 0:00:29]} 21. Qxd4 {[%emt 0:00:05]} Qe3 {[%emt 0:00:47]} 22. Qb2 {[%emt 0:03:18]} Rxa5 {[%emt 0:02:12]} 23. Qxb7 {[%emt 0:01:20]} Ra7 {[%emt 0:04:25]} 24. Qb2 {[%emt 0:03:34]} Qe5 {[%emt 0:02:03]} 25. Qb3 {[%emt 0:01:58]} Rea8 {[%emt 0:02:38]} 26. e3 {[%emt 0:03:50]} Ra3 {[%emt 0:01:37]} 27. Qb7 {[%emt 0:00:14]} R3a7 {[%emt 0:12:31]} 28. Qb3 {[%emt 0:01:52]} Ra3 {[%emt 0:00:39]} 29. Qb7 {[%emt 0:00:09]} R8a7 {[%emt 0:00:36]} 30. Qb1 {[%emt 0:00:26]} Be8 {[%emt 0:05:02]} 31. e4 {[%emt 0:02:18]} f4 {[%emt 0:01:40]} 32. gxf4 {[%emt 0:01:36]} gxf4 {[%emt 0:00:33]} 33. Bg4 {[%emt 0:01:15]} h5 {[%emt 0:03:29]} 34. Be6+ {[%emt 0:00:32]} Kh7 {[%emt 0:00:47]} 35. Kh1 {[%emt 0:02:43]} Bg6 {[%emt 0:01:00]} 36. Bf5 {[%emt 0:01:16]} Bxf5 {[%emt 0:02:09]} 37. exf5 {[%emt 0:00:06]} Kg7 {[%emt 0:02:33]} 38. f6+ {[%emt 0:00:15]} Kf8 {[%emt 0:01:14]} 39. Qg6 {[%emt 0:01:23]} Rxa2 {[%emt 0:01:18]} 40. Qg7+ {[%emt 0:00:00]} Ke8 {[%emt 0:00:00]} 41. f7+ {[%emt 0:15:16]} 1-0

[Event "FAI-ch Candidates 2022"]
[Site "Eidi"]
[Date "2022.04.14"]
[Round "6.2"]
[White "Hansen, Herluf"]
[Black "Berg, Margar M."]
[Result "1-0"]
[ECO "B00"]
[WhiteElo "1982"]
[BlackElo "2005"]
[Annotator "NA RC"]
[PlyCount "111"]
[EventDate "2022.04.10"]
[EventType "tourn"]
[EventCountry "FAI"]
[SourceTitle "playchess.com"]
[Source "ChessBase"]
[SourceQuality "1"]
[TimeControl "40/5400+30:1800+30"]

1. d4 {[%emt 0:00:47]} b6 {[%emt 0:01:37]} 2. Nc3 {[%emt 0:01:40]} e6 {[%emt 0:00:14]} 3. a3 {[%emt 0:00:28]} Bb7 {[%emt 0:00:20]} 4. e4 {[%emt 0:02:07]} d5 {[%emt 0:01:02]} 5. exd5 {[%emt 0:05:23]} exd5 {[%emt 0:01:15]} 6. Nf3 {[%emt 0:00:57]} Nf6 {[%emt 0:00:44]} 7. Bd3 {[%emt 0:00:54]} Be7 {[%emt 0:01:15]} 8. O-O {[%emt 0:01:09]} O-O {[%emt 0:00:20]} 9. Re1 {[%emt 0:02:36]} c5 {[%emt 0:05:26]} 10. h3 {[%emt 0:02:13]} Nc6 {[%emt 0:06:20]} 11. Be3 {[%emt 0:07:27]} ({White should play} 11. Bg5 $14) 11... a6 $11 {[%emt 0:07:07]} (11... c4 $142 $1 12. Be2 Qd6) 12. Bf1 {[%emt 0:01:50]} Qc7 {[%emt 0:07:22]} 13. g3 {[%emt 0:01:58]} Bd6 {[%emt 0:13:16]} 14. Bg2 {[%emt 0:06:11]} Ne7 {[%emt 0:05:30]} 15. Ne2 {[%emt 0:05:59]} Ng6 {[%emt 0:07:28]} 16. c3 {[%emt 0:03:01]} Ne4 {[%emt 0:00:58]} 17. Nd2 {[%emt 0:01:42]} f5 {[%emt 0:01:03]} 18. f4 {[%emt 0:01:24]} h5 {[%emt 0:03:06]} 19. Nxe4 {[%emt 0:07:31]} fxe4 {[%emt 0:07:18]} 20. Rf1 {[%emt 0:01:16]} Ne7 {[%emt 0:08:08]} 21. g4 {[%emt 0:02:31]} hxg4 {[%emt 0:03:27]} 22. hxg4 {[%emt 0:00:03]} Ng6 {[%emt 0:00:26]} 23. f5 {[%emt 0:05:11]} Nh4 {[%emt 0:00:53]} 24. Bf4 {[%emt 0:01:22]} Rae8 {[%emt 0:05:50]} 25. Qe1 {[%emt 0:04:56]} Nxg2 {[%emt 0:02:22]} 26. Kxg2 {[%emt 0:00:03]} e3 {[%emt 0:01:55]} 27. Qh4 {[%emt 0:03:45]} Bxf4 {[%emt 0:03:29]} 28. Nxf4 {[%emt 0:01:57]} e2 {[%emt 0:01:55]} 29. Rf3 {[%emt 0:01:57]} cxd4 {[%emt 0:01:09]} 30. cxd4 {[%emt 0:00:23]} Qc2 {[%emt 0:00:50]} 31. Re1 {[%emt 0:00:17]} Qd2 {[%emt 0:02:31]} 32. Qf2 {[%emt 0:02:28]} Re4 {[%emt 0:00:28]} 33. Rxe2 {[%emt 0:01:31]} Qxd4 {[%emt 0:00:35]} 34. Qxd4 {[%emt 0:00:31]} Rxd4 {[%emt 0:00:12]} 35. Re7 {[%emt 0:00:43]} Rb8 {[%emt 0:01:35]} 36. Rxg7+ {[%emt 0:00:45]} Kxg7 {[%emt 0:00:31]} 37. Ne6+ {[%emt 0:00:08]} Kf6 {[%emt 0:00:24]} 38. Nxd4 {[%emt 0:00:08]} Rc8 {[%emt 0:00:36]} 39. Kg3 {[%emt 0:05:38]} Rc4 {[%emt 0:00:22]} 40. Rf4 {[%emt 0:00:00]} b5 {[%emt 0:00:00]} 41. Ne6 {[%emt 0:18:58]} Ke5 {[%emt 0:24:32]} 42. Rf2 {[%emt 0:02:41]} d4 {[%emt 0:01:23]} 43. f6 {[%emt 0:00:17]} Kxe6 {[%emt 0:01:10]} 44. f7 {[%emt 0:00:09]} Rc8 {[%emt 0:00:05]} 45. f8=Q {[%emt 0:00:12]} Rxf8 {[%emt 0:00:04]} 46. Rxf8 {[%emt 0:00:12]} Be4 {[%emt 0:03:25]} 47. Kf4 {[%emt 0:00:38]} Bc2 {[%emt 0:03:28]} 48. g5 {[%emt 0:00:30]} Kd5 {[%emt 0:00:21]} 49. Rc8 {[%emt 0:01:44]} Bg6 {[%emt 0:00:40]} 50. b4 {[%emt 0:00:35]} Bd3 {[%emt 0:00:32]} 51. Rd8+ {[%emt 0:01:28]} Kc4 {[%emt 0:00:27]} 52. Ke5 {[%emt 0:00:09]} Kb3 {[%emt 0:00:30]} 53. Kxd4 {[%emt 0:00:27]} Bb1 {[%emt 0:00:32]} 54. Kc5 {[%emt 0:00:45]} Kxa3 {[%emt 0:00:28]} 55. Ra8 {[%emt 0:00:12]} Kb3 {[%emt 0:00:32]} 56. Rxa6 {[%emt 0:00:09]} 1-0

[Event "FAI-ch Candidates 2022"]
[Site "Eidi"]
[Date "2022.04.14"]
[Round "6.3"]
[White "Danielsen, Andrias"]
[Black "Nielsen, Jon I Horni"]
[Result "1/2-1/2"]
[ECO "E12"]
[WhiteElo "1893"]
[BlackElo "1923"]
[Annotator "TA"]
[PlyCount "62"]
[EventDate "2022.04.10"]
[EventType "tourn"]
[EventCountry "FAI"]
[SourceTitle "playchess.com"]
[Source "ChessBase"]
[SourceQuality "1"]
[TimeControl "40/5400+30:1800+30"]

{[%evp 10,62,0,-3,-12,1,19,22,25,5,5,12,25,19,16,11,31,19,33,29,53,10,59,0,47,0,49,0,26,-12,-10,-6,44,16,18,0,0,0,0,0,0,6,0,0,31,27,26,29,29,18,39,35,47,51,99]} 1. d4 {[%emt 0:00:02]} Nf6 {[%emt 0:00:05]} 2. c4 {[%emt 0:00:14]} e6 {[%emt 0:00:55]} 3. Nc3 {[%emt 0:00:13]} b6 {[%emt 0:01:11]} 4. Nf3 {[%emt 0:02:45]} Bb4 {[%emt 0:03:26]} 5. Bg5 {[%emt 0:07:28]} Bb7 {[%emt 0:01:06]} 6. a3 {[%emt 0:02:42]} Bxc3+ {[%emt 0:00:47] E12: Queen's Indian: Unusual White 4th moves, 4 a3, 4 Nc3 Bb7 5 a3 and 4 Nc3 Bb7 .} 7. bxc3 {[%emt 0:00:09]} d5 {[%emt 0:01:39]} 8. e3 {[%emt 0:04:42]} O-O {[%emt 0:00:24] The position is equal.} 9. Bd3 {[%emt 0:01:13]} dxc4 {[%emt 0:03:00]} 10. Bxc4 {[%emt 0:00:13]} Nbd7 {[%emt 0:03:31]} 11. O-O {[%emt 0:00:15]} c5 {[%emt 0:05:10] [#]} 12. Qe2 $146 {[%emt 0:09:31]} ({Predecessor:} 12. Be2 Qc7 13. Rc1 Rac8 14. h3 Rfe8 15. Bf4 Qc6 16. Ne1 e5 17. Bh2 e4 18. a4 {1-0 (81) Ravlusevic,E (1781)-Duson,R (1990) Tornelo INT 2020}) 12... Qc7 {[%emt 0:08:07]} 13. Bf4 {[%emt 0:06:46]} Qc6 {[%emt 0:00:36]} 14. Bb5 {[%emt 0:18:00] This bishop pair is nice.} Qe4 {[%emt 0:01:04][%cal Of6d5]} 15. Bd3 {[%emt 0:00:25]} Qd5 {[%emt 0:00:57]} (15... Qc6 $11) 16. Bc4 {[%emt 0:06:31]} (16. Rae1 $14) 16... Qe4 {[%emt 0:04:53]} (16... Qc6 $11) 17. Bd3 {[%emt 0:00:38]} Qd5 {[%emt 0:00:53]} 18. Bc4 {[%emt 0:00:06]} (18. Rae1 $14) 18... Qh5 {[%emt 0:09:50]} 19. Ne5 {[%emt 0:03:51] [#] And now Nxd7 would win.} Qxe2 {[%emt 0:01:40]} 20. Bxe2 {[%emt 0:00:11]} Rac8 {[%emt 0:04:03]} (20... Nxe5 $11 21. Bxe5 Ne4) 21. Rfc1 {[%emt 0:01:33]} Rfd8 {[%emt 0:02:41]} 22. h3 {[%emt 0:00:17]} Nd5 {[%emt 0:03:05]} 23. Bg3 {[%emt 0:01:25]} Nxe5 {[%emt 0:02:00]} 24. Bxe5 {[%emt 0:00:03]} f6 {[%emt 0:01:43]} 25. Bg3 {[%emt 0:01:06]} cxd4 {[%emt 0:00:53]} 26. cxd4 {[%emt 0:00:39]} Rxc1+ {[%emt 0:01:19]} 27. Rxc1 {[%emt 0:00:10] [#] Black must now prevent e4.} Rc8 {[%emt 0:00:04]} 28. Rxc8+ {[%emt 0:00:26]} Bxc8 {[%emt 0:00:03]} 29. Kf1 {[%emt 0:00:47]} Nc3 {[%emt 0:03:29]} 30. Bd3 {[%emt 0:07:07]} Bd7 {[%emt 0:02:44]} 31. Ke1 {[%emt 0:00:28]} Kf7 {[%emt 0:06:31] Weighted Error Value: White=0.16 (very precise) /Black=0.14 (very precise)} (31... Nb5 $14) 1/2-1/2